Cogmind - Beta 13 @@@ ROGUE MODE // 2024.04.05 @ 21:46:57 Player: nllptrxc Result: Destroyed by Grenadier 2a with Mini Grenade Launcher Performance ------------- Evolutions (0) 0 Regions Visited (4) 800 Robots Destroyed (29) 145 Value Destroyed (618) 618 Prototype IDs (23) 460 Alien Tech Used (0) 0 Bonus (242) 242 TOTAL SCORE: 2265 Bonus ------- Aligned with FarCom 300 Friendly Fire -58 Cogmind --------- Core Integrity 0/250 Matter 300/300 Energy 100/100 System Corruption 2% Temperature Cool (0) Movement Treading (320) Ox2 Location -9/Mines Parts ------- > --- POWER (1) -------- (None) > --- PROPULSION (2) --- Light Treads Light Treads > --- UTILITY (2) ------ Huge Storage Unit Hardened Light Armor Plating > --- WEAPON (2) ------- Assault Rifle Assault Rifle > --- INVENTORY (25) --- Light Nuclear Core Light Treads Light Treads Light Treads Light Treads Light Treads Small Storage Unit Signal Interpreter Seismic Detector Propulsion Shielding Light Armor Plating Hardened Light Armor Plating Hardened Light Armor Plating Hardened Light Armor Plating Bomb Drone Bay Assault Rifle Grenade Launcher Grenade Launcher Datajack Field Lobotomy Kit (3) Makeshift Spear Peak State ------------ > --- POWER ------------ Ion Engine > --- PROPULSION ------- Light Treads Light Treads > --- UTILITY ---------- Huge Storage Unit Hardened Light Armor Plating > --- WEAPON ----------- Assault Rifle Field Lobotomy Kit > --- INVENTORY -------- Light Nuclear Core Light Treads Light Treads Light Treads Light Treads Light Treads Small Storage Unit Signal Interpreter Seismic Detector Propulsion Shielding Light Armor Plating Hardened Light Armor Plating Hardened Light Armor Plating Hardened Light Armor Plating Bomb Drone Bay Assault Rifle Assault Rifle Grenade Launcher Grenade Launcher Datajack Makeshift Spear [Rating: 21] Favorites ----------- Power Ion Engine Engine Ion Engine Propulsion Light Treads Treads Light Treads Utility Huge Storage Unit Device Seismic Detector Storage Huge Storage Unit Processor Transport Network Coupler Protection Light Armor Plating Weapon Assault Rifle Ballistic Gun Assault Rifle Special Weapon Field Lobotomy Kit Build | -11 -10 -10 -10 -9 ------- Run | Yrd Mat Min Exi Min Slots Evolved . | . . . . . Power . | . . . . . Propulsion . | . . . . . Utility . | . . . . . Weapon . | . . . . . Parts Attached 25 | 7 7 4 2 5 Power 3 | 1 . 1 1 . Engine 3 | 1 . 1 1 . Core . | . . . . . Reactor . | . . . . . Propulsion 6 | 2 2 1 1 . Treads 6 | 2 2 1 1 . Leg . | . . . . . Wheel . | . . . . . Hover . | . . . . . Flight . | . . . . . Utility 7 | 2 4 . . 1 Device 1 | 1 . . . . Storage 2 | 1 1 . . . Processor 2 | . 2 . . . Hackware . | . . . . . Protection 2 | . 1 . . 1 Artifact . | . . . . . Weapon 9 | 2 1 2 . 4 Energy Gun . | . . . . . Energy Cannon . | . . . . . Ballistic Gun 8 | 2 1 2 . 3 Ballistic Cannon . | . . . . . Launcher . | . . . . . Special Weapon 1 | . . . . 1 Impact Weapon . | . . . . . Slashing Weapon . | . . . . . Piercing Weapon . | . . . . . Special Melee Weapon . | . . . . . Unidentified Prototypes . | . . . . . Parts Lost 3 | . 1 1 . 1 Power 1 | . . . . 1 Propulsion . | . . . . . Utility 1 | . 1 . . . Weapon 1 | . . 1 . . Highest Loss Streak 1 | . 1 1 . 1 To Critical Strikes . | . . . . . Average Slot Usage (%) 95 | . 98 99 72 95 Engine 13 | . 14 14 14 10 Treads 28 | . 28 28 28 28 Storage 14 | . 14 14 14 14 Processor 11 | . 8 14 14 9 Protection 1 | . 2 . . 4 Ballistic Gun 24 | . 28 27 1 27 Naked Turns . | . . . . . Heaviest Build 100 | 15 92 89 87 100 Greatest Support 40 | 40 40 40 40 40 Greatest Overweight (x) 2 | . 2 2 2 2 Average Overweight (x) 1 | . 1 2 2 2 Largest Inventory Capacity 25 | 8 25 25 25 25 Average Capacity 24 | 7 24 25 25 25 Most Carried 25 | 3 25 25 25 24 Average Carried 23 | 2 22 24 24 22 Final Capacity 25 | 8 25 25 25 25 Final Carried 25 | 3 25 25 25 22 Class Distribution -------------------- 100% | Mutant Dominant Class ---------------- Mutant | -10/Materials Mutant | -10/Mines Mutant | -10/Exiles Mutant | -9/Mines Resources | -11 -10 -10 -10 -9 ----------- Run | Yrd Mat Min Exi Min Matter Collected 976 | 268 384 233 . 91 Remotely . | . . . . . Salvage Created 1077 | 83 606 388 . . Parts 63 | 8 40 15 . . Haulers Intercepted 2 | . 2 . . . Recyclers Shooed 5 | 1 . 4 . . Parts Field Recycled . | . . . . . Retrieved Matter . | . . . . . Parts Self-Destructed . | . . . . . Prevented . | . . . . . Kills | -11 -10 -10 -10 -9 ------- Run | Yrd Mat Min Exi Min Combat Hostiles Destroyed 15 | . 10 5 . . Guns 15 | . 10 5 . . Classes Destroyed 9 | 2 7 . . . Worker 1 | . 1 . . . Builder 1 | . 1 . . . Tunneler 1 | 1 . . . . Hauler 2 | . 2 . . . Recycler 4 | 1 . 3 . . Operator 3 | . 3 . . . Watcher 2 | . 2 . . . Swarmer 3 | . 3 . . . Grunt 12 | . 7 5 . . Best Kill Streak 5 | 2 4 5 . . Combat Bots Only 3 | . 3 2 . . Max Kills in Single Turn 1 | 1 1 1 . . Gunslinging . | . . . . . Exploded . | . . . . . Melee . | . . . . . Uniques/NPCs Destroyed . | . . . . . Combat | -11 -10 -10 -10 -9 -------- Run | Yrd Mat Min Exi Min Hostile Shots Fired 115 | . 61 43 . 11 Missed 25 | . 16 9 . . Damage Taken 1479 | . 505 457 . 517 Core 256 | . 99 86 . 71 Absorbed by Shields . | . . . . . Core Remaining (%) 100 | 100 . . . . Volleys Fired 86 | 3 54 27 . 2 Largest 2 | 2 2 2 . 1 Hottest 40 | 40 40 40 . . Shots Fired 170 | 6 108 54 . 2 Gun 168 | 6 108 54 . . Cannon . | . . . . . Launcher . | . . . . . Special 2 | . . . . 2 Kinetic 168 | 6 108 54 . . Thermal . | . . . . . Explosive . | . . . . . Electromagnetic . | . . . . . Robot Hit Streak 13 | 3 9 13 . 1 Robot Miss Streak 4 | 1 4 3 . 1 Penetration Max . | . . . . . Secondary Targets 1 | . . 1 . . Max Gunslinging Chain 1 | . . 1 . . Shots Hit Robots 112 | 4 68 39 . 1 Core Hits 53 | 3 31 19 . . Critical Kills . | . . . . . Critical Parts Destroyed . | . . . . . Critical Strikes . | . . . . . Melee Attacks . | . . . . . Impact . | . . . . . Slashing . | . . . . . Piercing . | . . . . . Sneak Attacks . | . . . . . Combat Hostiles . | . . . . . Follow-up Attacks . | . . . . . Damage Inflicted 1438 | 52 875 511 . . Guns 1408 | 52 863 493 . . Cannons . | . . . . . Explosions . | . . . . . Melee . | . . . . . Ramming 30 | . 12 18 . . Kinetic 1408 | 52 863 493 . . Thermal . | . . . . . Explosive . | . . . . . Electromagnetic . | . . . . . Impact . | . . . . . Slashing . | . . . . . Piercing . | . . . . . Highest Corruption 2 | . 2 2 2 2 Average Corruption 2 | . 2 2 2 2 Corruption Purged . | . . . . . Corruption Blocked . | . . . . . Effects 30 | . 4 19 5 2 Message Errors 5 | . 1 2 1 1 Matter Fused 7 | . . 6 1 . Heat Flow Errors 6 | . . 5 1 . Energy Discharges 4 | . 1 2 . 1 Data Loss (minor) 4 | . 2 1 1 . Data Loss (major) 2 | . . 1 1 . Misfires 1 | . . 1 . . Alerts 1 | . . 1 . . Overload Shots . | . . . . . Overflow Damage . | . . . . . Projectiles . | . . . . . Explosions . | . . . . . Melee . | . . . . . Knockbacks . | . . . . . Impact . | . . . . . Kinetic . | . . . . . Secondary . | . . . . . Self-Inflicted Damage . | . . . . . Shots . | . . . . . Rammed 3 | . 1 2 . . Targets Rammed 3 | . 1 2 . . Kicked . | . . . . . Crushed . | . . . . . Highest Temperature 262 | . 20 236 262 . Average Temperature 78 | . 6 79 136 . Received Heat Transfer 537 | . 276 261 . . Siege Activations . | . . . . . Robots Corrupted . | . . . . . Combat Hostiles . | . . . . . Parts Fried . | . . . . . Impact Corruptions . | . . . . . Robots Melted . | . . . . . Combat Hostiles . | . . . . . Parts Melted . | . . . . . Heat Transferred . | . . . . . Parts Sabotaged . | . . . . . Parts Stolen . | . . . . . Parts Stripped . | . . . . . Power Chain Reactions . | . . . . . Alert | -11 -10 -10 -10 -9 ------- Run | Yrd Mat Min Exi Min Peak Influence 205 | 10 205 65 . 19 Initial 6 | . 6 . . . Average 32 | 6 44 20 . . Maximum Alert Level 1 | . 1 . . . Low Security (%) 98 | 100 97 100 . 100 Level 1 1 | . 2 . . . Level 2 . | . . . . . Level 3 . | . . . . . Level 4 . | . . . . . Level 5 . | . . . . . High Security . | . . . . . Max Security . | . . . . . Squads Dispatched 3 | . 2 . . 1 Investigation 1 | . . . . 1 Extermination . | . . . . . Reinforcement 2 | . 2 . . . Assault . | . . . . . Garrison . | . . . . . Intercept . | . . . . . Searches Triggered . | . . . . . Construction Impeded . | . . . . . Haulers Reinforced . | . . . . . Active Scanning Responses . | . . . . . Cargo Convoy Interrupts . | . . . . . Stealth | -11 -10 -10 -10 -9 --------- Run | Yrd Mat Min Exi Min Distress Signals 1 | . 1 . . . Communications Jammed . | . . . . . Distress Signals . | . . . . . Times Spotted 46 | . 30 6 . 10 Peak Tracking Total 6 | . 5 2 . 6 Tactical Retreats 2 | . 1 1 . . Traps | -11 -10 -10 -10 -9 ------- Run | Yrd Mat Min Exi Min Traps Triggered 1 | . 1 . . . Indirectly . | . . . . . Trap Hack Attempts . | . . . . . Triggered . | . . . . . Disarmed . | . . . . . Reprogrammed . | . . . . . Reused . | . . . . . Traps Extracted . | . . . . . Installed . | . . . . . Triggered . | . . . . . Machines | -11 -10 -10 -10 -9 ---------- Run | Yrd Mat Min Exi Min Machines Disabled 1 | . 1 . . . Max in Single Turn 1 | . 1 . . . Machines Repaired . | . . . . . Machines Dismantled . | . . . . . Machines Sabotaged . | . . . . . Overloaded Fab Kills . | . . . . . Hacking | -11 -10 -10 -10 -9 --------- Run | Yrd Mat Min Exi Min Machines Accessed 9 | . 6 1 1 1 Terminals 6 | . 6 . . . Fabricators . | . . . . . Repair Stations . | . . . . . Recycling Units . | . . . . . Scanalyzers . | . . . . . Garrison Access . | . . . . . Total Hacks 18 | . 15 1 1 1 Successful 9 | . 6 1 1 1 Failed 8 | . 8 . . . Catastrophic . | . . . . . Database Lockouts 1 | . 1 . . . Manual 16 | . 15 . 1 . Terminals 15 | . 15 . . . Fabricators . | . . . . . Repair Stations . | . . . . . Recycling Units . | . . . . . Scanalyzers . | . . . . . Garrison Access . | . . . . . Terminal Hacks 5 | . 2 1 1 1 Robot Analysis 1 | . 1 . . . Open Door 2 | . . 1 . 1 Terminal Index 1 | . 1 . . . Derelict Proto ID Bank 1 | . . . 1 . Fabricator Hacks . | . . . . . Repair Station Hacks . | . . . . . Recycling Unit Hacks . | . . . . . Scanalyzer . | . . . . . Garrison Access Hacks . | . . . . . Unauthorized Hacks 4 | . 4 . . . Terminals 4 | . 4 . . . Assimilate 3 | . 3 . . . Operators 1 | . 1 . . . Fabricators . | . . . . . Repair Stations . | . . . . . Recycling Units . | . . . . . Scanalyzers . | . . . . . Garrison Access . | . . . . . Data Cores Recovered . | . . . . . Used . | . . . . . Hacking Detections 5 | . 5 . . . Full Trace Events . | . . . . . Feedback Events . | . . . . . Feedback Blocked . | . . . . . Robot Schematics Acquired . | . . . . . Robots Built . | . . . . . Authchips . | . . . . . Time . | . . . . . Total Robot Build Rating . | . . . . . Part Schematics Acquired . | . . . . . Parts Built . | . . . . . Authchips . | . . . . . Time . | . . . . . Total Part Build Rating . | . . . . . Parts Repaired . | . . . . . Time . | . . . . . Parts Recycled . | . . . . . Recycled Matter . | . . . . . Retrieved Matter . | . . . . . Retrieved Components . | . . . . . Parts Scanalyzed . | . . . . . Part Schematics Acquired . | . . . . . Parts Damaged . | . . . . . Bothacking | -11 -10 -10 -10 -9 ------------ Run | Yrd Mat Min Exi Min Used RIF Installer . | . . . . . Robots Hacked . | . . . . . Non-combat . | . . . . . Combat . | . . . . . Robot Hacks Applied . | . . . . . Relay Couplers Released . | . . . . . Fabnet Peak Effective % . | . . . . . Robots Rewired . | . . . . . Allies Hacked . | . . . . . Hacks Repelled . | . . . . . Allies | -11 -10 -10 -10 -9 -------- Run | Yrd Mat Min Exi Min Total Allies 3 | . 2 . . 1 Largest Group 1 | . 1 . . 1 Highest-Rated Group 34 | . 10 . . 34 Highest-Rated Ally 34 | . 10 . . 34 Total Orders . | . . . . . Ally Attacks 3 | . . . . 3 Total Damage 254 | . . . . 254 Kills 3 | . . . . 3 Allies Corrupted . | . . . . . Allies Melted . | . . . . . Field Lobotomies 1 | . . . . 1 Intel | -11 -10 -10 -10 -9 ------- Run | Yrd Mat Min Exi Min Robot Analysis Total 1 | . 1 . . . Derelict Logs Recovered 2 | . . 2 . . Drone Launches . | . . . . . Drone Recoveries . | . . . . . Exploration | -11 -10 -10 -10 -9 ------------- Run | Yrd Mat Min Exi Min Turns Passed 5512 | 85 2683 1847 691 206 Spaces Moved 1625 | 46 801 504 215 59 Core 9 | 9 . . . . Treads 1616 | 37 801 504 215 59 Legs . | . . . . . Wheels . | . . . . . Hover . | . . . . . Flight . | . . . . . Fastest Speed 50 | 50 160 320 320 320 Average Speed 307 | 138 305 320 320 320 Slowest Speed 320 | 160 320 320 320 320 Overloaded Moves . | . . . . . Propulsion Burnouts . | . . . . . Robots Hopped . | . . . . . Cave-ins Triggered . | . . . . . Exploration Rate (%) 57 | 5 98 97 62 25 Regions Visited 4 Branch Regions 3 Pre-discovered Areas . | . . . . . Known Exits Taken . | . . . . . Unknown Exits Taken 4 | 1 1 1 1 . Scrap Searched 2 | . . 1 . 1 Spaces Dug . | . . . . . Terrain Destroyed . | . . . . . Melee . | . . . . . Projectile . | . . . . . AOE . | . . . . . Terrain Rammed . | . . . . . Walls Destroyed . | . . . . . Machines Disabled . | . . . . . Actions | -11 -10 -10 -10 -9 --------- Run | Yrd Mat Min Exi Min Total 1975 | 58 939 684 222 72 Wait 175 | . 31 140 . 4 Move 1621 | 45 800 503 214 59 Hop . | . . . . . Pick Up 38 | 3 30 4 1 . Fast Attach 10 | 7 3 . . . Attach 7 | . . 2 1 4 Detach 5 | . 2 . 2 1 Swap 8 | . 4 2 1 1 Drop 22 | . 14 4 3 1 Fire 86 | 3 54 27 . 2 Melee . | . . . . . Ram . | . . . . . Kick . | . . . . . Crush 3 | . 1 2 . . Escape Stasis . | . . . . . Rewire . | . . . . . Trap . | . . . . . Miscellaneous . | . . . . . Route ------- -11/Scrapyard -10/Materials (discovered 5 exits: [*Mat x3] / *Min x2) -10/Mines (discovered 2 exits: [*Mat] / *Exi) -10/Exiles -9/Mines History --------- Turn | Location | Event 8 | -11/Scrapyard | Discovered new exit (range 15) 86 | -11/Scrapyard | Entered Materials 166 | -10/Materials | Discovered new exit (range 6) 311 | -10/Materials | Build established: Mutant 720 | -10/Materials | Discovered new exit (range 6) 868 | -10/Materials | Central database locked down 964 | -10/Materials | Discovered new exit (range 7) 1756 | -10/Materials | Discovered new exit (range 5) 2109 | -10/Materials | Discovered new exit (range 4) 2769 | -10/Materials | Entered Mines 2942 | -10/Mines | Discovered new exit (range 11) 3005 | -10/Mines | Core integrity fell below 50% 3133 | -10/Mines | Found the Drone Emporium 3147 | -10/Mines | Found Prototype Device 4211 | -10/Mines | A weapon hastily lodged in a ceiling crevice suddenly fell to the ground 4272 | -10/Mines | Learned 4 Materials zone layouts 4600 | -10/Mines | Deemed a non-threat by the Exiles lab entrance 4604 | -10/Mines | Discovered new exit (range 5) 4616 | -10/Mines | Entered Exiles 4698 | -10/Exiles | Met 8R-AWN 4753 | -10/Exiles | Met EX-HEX 4845 | -10/Exiles | Met EX-BIN 4884 | -10/Exiles | Aligned with FarCom system 4887 | -10/Exiles | Given EX-Vault access code 4961 | -10/Exiles | Opened EX-Vault 4983 | -10/Exiles | Found Field Lobotomy Kit 5048 | -10/Exiles | Warned to stay clear of 0b10 Research branches 5141 | -10/Exiles | Met EX-DEC 5282 | -10/Exiles | Discovered new exit (range 10) 5307 | -10/Exiles | Left Exiles lab with Field Lobotomy Kit 5307 | -10/Exiles | Entered Mines 5336 | -9/Mines | Met a Derelict shopkeep closing up shop 5394 | -9/Mines | Met a Derelict bent on vengeance 5426 | -9/Mines | Assembled infested the area 5431 | -9/Mines | Assisted by a Guerilla fighting off Assembled 5455 | -9/Mines | Core integrity fell below 20% 5455 | -9/Mines | Assimilated D-53 Grenadier with FLK Orb 5513 | -9/Mines | Destroyed by Grenadier 2a with Mini Grenade Launcher Last Messages --------------- 05458_ D-53 Grenadier destroyed. 05459_ The unstable cave ceiling collapses. 05461_ System corrupted: Energy discharge (-28). 05461_ U-05 Engineer builds a Wall. 05462_ The unstable cave ceiling collapses. 05465_ U-05 Engineer lays Concrete. 05466_ The unstable cave ceiling collapses. 05466_ U-05 Engineer builds a Wall. 05467_ The unstable cave ceiling collapses. 05504_ Acquired 25 matter. 05504_ as-88955 sneak attacks. 05504_ R-06 Scavenger system corrupted by crushing effect. 05504_ R-06 Scavenger destroyed. 05506_ as-01276 sneak attacks. 05507_ as-01276 destroyed. 05507_ as-27098 destroyed. 05510_ G-47 Trooper destroyed. 05512_ Grenadier 2a knocked back. 05513_ as-92168 destroyed. 05513_ as-88955 destroyed. Map ----- +----------------------------------------------------+ | ????????????????????????# #?????## | | ????????????? ???????????# ##???## ## | | ????????????? ??###??????# ##### #### | | ???????????? ## #???#### ! ##??# | | ???????????? #### # # #???? | | ????????????? # # ###### ##???? | | ????????????????# #????# #????? | | ?????????????????# #????# #????? | | ?????????????????# # ##????# #????? # | | ?????????????????## %##?????# #?????#? | | ??????????????????## # # #??????# #??????? | | ???????????????????### # # # #??????# #??????? | | ?????????????????????# # #??????# #??????? | | ?????????????????????## # ## ## #??????# #??????? | | ?????????????????????# # # ## #??????# #??????? | | ?????????????????????## # ##### #??????? ???????? | | ??????????????????????### #???# #??????? ???????? | | ????????????????????????# #???# #??????? ???????? | | ????????????????????????# #???? ?????????????????? | | ????????????????????????# #???? ?????????????????? | | ????????????????????????# #???? ?????????????????? | | ????????????????????????# #???? ?????????????????? | | ????????????????????????# #????#?????????????????? | | ????????????????????????# #??????????????????????? | | ??????????????????????###%##?????????????????????? | | ??????????????????????# @ #?????????????????????? | | ?????????????????????# d ??????????????????? | | ?????????????????????# % ??????????????? | | ???????????????????? =% ###% #?????????????? | | ???????????????????# #??? ! =#????????????? | | ??????????????????# # % ?##????? =#????????????? | | ????????????????? !? ????????? ???????????? | | ???????????????? ? ??????????? ??????????? | | ??????????????? ? ????????????????????????? | | ??????????????##? #????????????????????????? | | ????????????????######% ?????????????????????????? | | ?????????????????????#a ?????????????????????????? | | ?????????????????????#a#?????????????????????????? | | ?????????????????????gg??????????????????????????? | | ?????????????????????#[??????????????????????????? | | ?????????????????????????????????????????????????? | | ?????????????????????????????????????????????????? | | ?????????????????????????????????????????????????? | | ?????????????????????????????????????????????????? | | ?????????????????????????????????????????????????? | | ?????????????????????????????????????????????????? | | ?????????????????????????????????????????????????? | | ?????????????????????????????????????????????????? | | ?????????????????????????????????????????????????? | | ?????????????????????????????????????????????????? | +----------------------------------------------------+ Best States ------------- Heat Dissipation 25 Energy Generation 10 Energy Capacity 250 Matter Stores 300 Matter Capacity 300 Sight Range 16 Terrain Scan Density 10 Armor Coverage 150 Evasion (%) 40 Targeting Accuracy 5 Recoil Reduction 2 Item Schematics ----------------- None Robot Schematics ------------------ None Fabricated ------------ Nothing Alien Tech Used ----------------- None Achievements -------------- None Challenges ------------ None Game ------ Seed SniperFusionStripper Manual? 0 Play Time 00:32:11 Cumulative 12.4 hours Start 2024.04.05 @ 21:14:18 End 2024.04.05 @ 21:46:57 Sessions 1 Manual Loads 0 Difficulty Rogue Special Mode None Game No. 11 Rogue 11 Adventurer 0 Explorer 0 Win Type - Total 0 Types 0/0/0/0/0/0/0/0/0 Lore% 16 Gallery% 14 Achievement% 19 Wizard Run 0 Options --------- Layout 0 ASCII 0 Keyboard 0 Movement Numpad Keybinds 0 Fullscreen 1 Font 18/SmallcapsGlow Map View 76x50 Zoom Use 0% Tactical HUD 1 Map Filters NONE Filters NONE Steam 1 RUN: 4c21a5f1-f32c-42ed-980b-82f6c052098b